[Event "Titled Tuesday Blitz April 12 Late 2022"]
[White "Djokic, Mihailo"]
[Black "Shuvalova, Polina"]
[WhiteFideId "976440"]
[BlackFideId "24171760"]
[WhiteElo "2202"]
[BlackElo "2355"]
[Result "1-0"]
[Round "11"]
[TimeControl "180+1"]
[Date "2022.04.12"]
[WhiteClock "0:00:39"]
[BlackClock "0:00:22"]

1. e4 {[%clk 0:03:00]}  c5 {[%clk 0:02:59]} 2. Nf3 {[%clk 0:03:00]}  d6 {[%clk 0:02:59]} 3. d3 {[%clk 0:03:00]}  Nc6 {[%clk 0:02:58]} 4. g3 {[%clk 0:03:00]}  g6 {[%clk 0:02:59]} 5. Bg2 {[%clk 0:03:00]}  Bg7 {[%clk 0:02:59]} 6. O-O {[%clk 0:03:00]}  e6 {[%clk 0:03:00]} 7. Re1 {[%clk 0:03:00]}  Nge7 {[%clk 0:03:00]} 8. c3 {[%clk 0:02:54]}  e5 {[%clk 0:02:54]} 9. Nbd2 {[%clk 0:02:54]}  Be6 {[%clk 0:02:54]} 10. Nf1 {[%clk 0:02:48]}  h6 {[%clk 0:02:54]} 11. Be3 {[%clk 0:02:45]}  b6 {[%clk 0:02:50]} 12. d4 {[%clk 0:02:45]}  exd4 {[%clk 0:02:44]} 13. cxd4 {[%clk 0:02:46]}  Bg4 {[%clk 0:02:44]} 14. d5 {[%clk 0:02:44]}  Nd4 {[%clk 0:02:41]} 15. Rb1 {[%clk 0:02:30]}  O-O {[%clk 0:02:37]} 16. N1d2 {[%clk 0:02:25]}  Qd7 {[%clk 0:02:25]} 17. Nb3 {[%clk 0:02:10]}  Nxf3+ {[%clk 0:02:17]} 18. Bxf3 {[%clk 0:02:10]}  Bxf3 {[%clk 0:02:09]} 19. Qxf3 {[%clk 0:02:11]}  f5 {[%clk 0:02:09]} 20. Nd2 {[%clk 0:02:00]}  Rf7 {[%clk 0:02:08]} 21. exf5 {[%clk 0:01:54]}  Rxf5 {[%clk 0:02:05]} 22. Qg2 {[%clk 0:01:53]}  Nxd5 {[%clk 0:02:02]} 23. Nc4 {[%clk 0:01:51]}  Raf8 {[%clk 0:01:59]} 24. Rbd1 {[%clk 0:01:50]}  Nxe3 {[%clk 0:01:54]} 25. fxe3 {[%clk 0:01:42]}  d5 {[%clk 0:01:45]} 26. Rd2 {[%clk 0:01:18]}  Qe6 {[%clk 0:01:40]} 27. Na3 {[%clk 0:01:13]}  Kh7 {[%clk 0:01:36]} 28. Nb5 {[%clk 0:01:11]}  h5 {[%clk 0:01:33]} 29. Nc7 {[%clk 0:01:10]}  Qf7 {[%clk 0:01:23]} 30. Nxd5 {[%clk 0:01:09]}  Rd8 {[%clk 0:01:15]} 31. e4 {[%clk 0:01:07]}  Re5 {[%clk 0:01:15]} 32. Rf1 {[%clk 0:00:59]}  Qe6 {[%clk 0:01:09]} 33. Nf4 {[%clk 0:00:57]}  Qe8 {[%clk 0:01:07]} 34. Rxd8 {[%clk 0:00:55]}  Qxd8 {[%clk 0:01:07]} 35. Nd5 {[%clk 0:00:54]}  Qe8 {[%clk 0:01:03]} 36. Qf3 {[%clk 0:00:52]}  Rxe4 {[%clk 0:00:58]} 37. Qf7 {[%clk 0:00:50]}  Qxf7 {[%clk 0:00:54]} 38. Rxf7 {[%clk 0:00:50]}  Kg8 {[%clk 0:00:50]} 39. Rxa7 {[%clk 0:00:49]}  Bxb2 {[%clk 0:00:43]} 40. Rb7 {[%clk 0:00:44]}  c4 {[%clk 0:00:40]} 41. Kf1 {[%clk 0:00:40]}  Re5 {[%clk 0:00:27]} 42. Nf6+ {[%clk 0:00:38]}  Kf8 {[%clk 0:00:24]} 43. Nd7+ {[%clk 0:00:38]}  Ke8 {[%clk 0:00:23]} 44. Nxe5 {[%clk 0:00:39]}  Bxe5 {[%clk 0:00:23]} 45. Rxb6 {[%clk 0:00:39]}  Kd7 {[%clk 0:00:22]} 46. Rxg6 {[%clk 0:00:39]}  c3 {[%clk 0:00:22]} 47. Ke2 {[%clk 0:00:39]} 1-0


[Site "https://www.chess.com"]

[Event "Titled Tuesday Blitz April 12 Late 2022"]
[White "Gharibyan, Mamikon"]
[Black "Sernecki, Franciszek"]
[WhiteFideId "13308300"]
[BlackFideId "1169297"]
[WhiteElo "2254"]
[BlackElo "2165"]
[Result "1-0"]
[Round "11"]
[TimeControl "180+1"]
[Date "2022.04.12"]
[WhiteClock "0:00:08"]
[BlackClock "0:00:05"]

1. c4 {[%clk 0:03:00]}  e6 {[%clk 0:02:55]} 2. Nc3 {[%clk 0:02:59]}  Nf6 {[%clk 0:02:54]} 3. d4 {[%clk 0:02:57]}  Bb4 {[%clk 0:02:52]} 4. a3 {[%clk 0:02:56]}  Bxc3+ {[%clk 0:02:52]} 5. bxc3 {[%clk 0:02:57]}  O-O {[%clk 0:02:52]} 6. f3 {[%clk 0:02:55]}  Nh5 {[%clk 0:02:52]} 7. Nh3 {[%clk 0:02:51]}  f5 {[%clk 0:02:52]} 8. Nf2 {[%clk 0:02:48]}  f4 {[%clk 0:02:45]} 9. e3 {[%clk 0:02:43]}  d6 {[%clk 0:02:41]} 10. exf4 {[%clk 0:02:42]}  Nxf4 {[%clk 0:02:39]} 11. g3 {[%clk 0:02:38]}  Ng6 {[%clk 0:02:32]} 12. f4 {[%clk 0:02:24]}  e5 {[%clk 0:02:25]} 13. Bg2 {[%clk 0:01:43]}  exf4 {[%clk 0:02:22]} 14. O-O {[%clk 0:01:43]}  fxg3 {[%clk 0:02:14]} 15. hxg3 {[%clk 0:01:42]}  Nc6 {[%clk 0:02:13]} 16. Ne4 {[%clk 0:01:40]}  Bf5 {[%clk 0:02:09]} 17. Ng5 {[%clk 0:01:37]}  h6 {[%clk 0:02:07]} 18. Bd5+ {[%clk 0:01:33]}  Kh8 {[%clk 0:02:04]} 19. Nf7+ {[%clk 0:01:34]}  Rxf7 {[%clk 0:02:04]} 20. Bxf7 {[%clk 0:01:34]}  Qf6 {[%clk 0:01:55]} 21. Bd5 {[%clk 0:01:31]}  Nge7 {[%clk 0:01:44]} 22. Bg2 {[%clk 0:01:23]}  Qg6 {[%clk 0:01:43]} 23. Bf4 {[%clk 0:01:13]}  Rf8 {[%clk 0:01:38]} 24. c5 {[%clk 0:01:00]}  Be4 {[%clk 0:01:19]} 25. cxd6 {[%clk 0:00:57]}  cxd6 {[%clk 0:01:17]} 26. Qe2 {[%clk 0:00:43]}  Bd3 {[%clk 0:01:13]} 27. Qf3 {[%clk 0:00:38]}  Bxf1 {[%clk 0:01:13]} 28. Rxf1 {[%clk 0:00:39]}  a6 {[%clk 0:00:36]} 29. Kh2 {[%clk 0:00:37]}  Rf5 {[%clk 0:00:33]} 30. Bh3 {[%clk 0:00:34]}  Rf8 {[%clk 0:00:30]} 31. Re1 {[%clk 0:00:32]}  Qc2+ {[%clk 0:00:27]} 32. Bg2 {[%clk 0:00:25]}  Qg6 {[%clk 0:00:20]} 33. Qe2 {[%clk 0:00:22]}  Nf5 {[%clk 0:00:19]} 34. Qe6 {[%clk 0:00:21]}  Qh5+ {[%clk 0:00:15]} 35. Kg1 {[%clk 0:00:19]}  Nh4 {[%clk 0:00:11]} 36. Qe2 {[%clk 0:00:14]}  Qxe2 {[%clk 0:00:07]} 37. Rxe2 {[%clk 0:00:15]}  Nxg2 {[%clk 0:00:08]} 38. Kxg2 {[%clk 0:00:16]}  d5 {[%clk 0:00:08]} 39. Re6 {[%clk 0:00:15]}  Kg8 {[%clk 0:00:06]} 40. Rd6 {[%clk 0:00:11]}  Rd8 {[%clk 0:00:06]} 41. Re6 {[%clk 0:00:08]}  Kf7 {[%clk 0:00:06]} 42. Re1 {[%clk 0:00:08]}  Re8 {[%clk 0:00:06]} 43. Rb1 {[%clk 0:00:08]}  b5 {[%clk 0:00:05]} 44. Kf3 {[%clk 0:00:08]}  g5 {[%clk 0:00:04]} 45. Bd6 {[%clk 0:00:09]}  Na5 {[%clk 0:00:04]} 46. a4 {[%clk 0:00:08]}  bxa4 {[%clk 0:00:04]} 47. Ra1 {[%clk 0:00:09]}  Nc4 {[%clk 0:00:04]} 48. Bb4 {[%clk 0:00:08]}  a3 {[%clk 0:00:04]} 49. Bxa3 {[%clk 0:00:08]}  Re3+ {[%clk 0:00:05]} 50. Kg4 {[%clk 0:00:07]}  Rxc3 {[%clk 0:00:05]} 51. Bc5 {[%clk 0:00:06]}  a5 {[%clk 0:00:05]} 52. Kh5 {[%clk 0:00:07]}  Rxg3 {[%clk 0:00:01]} 53. Kxh6 {[%clk 0:00:07]}  g4 {[%clk 0:00:01]} 54. Kg5 {[%clk 0:00:07]}  Rf3 {[%clk 0:00:02]} 55. Kxg4 {[%clk 0:00:07]}  Rb3 {[%clk 0:00:02]} 56. Kf5 {[%clk 0:00:07]}  Ne3+ {[%clk 0:00:02]} 57. Ke5 {[%clk 0:00:06]}  Rb5 {[%clk 0:00:01]} 58. Re1 {[%clk 0:00:04]}  Nc4+ {[%clk 0:00:01]} 59. Kxd5 {[%clk 0:00:05]}  Nb6+ {[%clk 0:00:02]} 60. Kc6 {[%clk 0:00:05]}  Rb1 {[%clk 0:00:01]} 61. Rxb1 {[%clk 0:00:04]}  Nc4 {[%clk 0:00:01]} 62. Kb5 {[%clk 0:00:03]}  Na3+ {[%clk 0:00:01]} 63. Bxa3 {[%clk 0:00:04]}  a4 {[%clk 0:00:01]} 64. Kc6 {[%clk 0:00:04]}  Ke6 {[%clk 0:00:02]} 65. d5+ {[%clk 0:00:04]}  Kf5 {[%clk 0:00:02]} 66. d6 {[%clk 0:00:05]}  Kf4 {[%clk 0:00:03]} 67. d7 {[%clk 0:00:06]}  Kf3 {[%clk 0:00:04]} 68. d8=Q {[%clk 0:00:07]}  Kf2 {[%clk 0:00:05]} 69. Qe7 {[%clk 0:00:07]}  Kf3 {[%clk 0:00:02]} 70. Qe5 {[%clk 0:00:07]}  Kg2 {[%clk 0:00:02]} 71. Rb4 {[%clk 0:00:07]}  Kf2 {[%clk 0:00:03]} 72. Rf4+ {[%clk 0:00:07]}  Kg3 {[%clk 0:00:04]} 73. Qg5+ {[%clk 0:00:07]}  Kh2 {[%clk 0:00:05]} 74. Rh4# {[%clk 0:00:08]} 1-0


[Site "https://www.chess.com"]

[Event "Titled Tuesday Blitz April 12 Late 2022"]
[White "Grave, Jacob Templen"]
[Black "Levin, Anthony"]
[WhiteFideId "1542656"]
[BlackFideId "30940680"]
[WhiteElo "1737"]
[BlackElo "2109"]
[Result "0-1"]
[Round "11"]
[TimeControl "180+1"]
[Date "2022.04.13"]
[WhiteClock "0:00:02"]
[BlackClock "0:00:07"]

1. b3 {[%clk 0:03:00]}  d5 {[%clk 0:02:56]} 2. Bb2 {[%clk 0:02:59]}  Bf5 {[%clk 0:02:56]} 3. e3 {[%clk 0:02:55]}  e6 {[%clk 0:02:56]} 4. Nf3 {[%clk 0:02:54]}  Nf6 {[%clk 0:02:56]} 5. c4 {[%clk 0:02:50]}  c6 {[%clk 0:02:55]} 6. Nc3 {[%clk 0:02:45]}  Nbd7 {[%clk 0:02:54]} 7. Be2 {[%clk 0:02:36]}  h6 {[%clk 0:02:54]} 8. O-O {[%clk 0:02:35]}  Be7 {[%clk 0:02:54]} 9. d4 {[%clk 0:02:30]}  O-O {[%clk 0:02:53]} 10. Rc1 {[%clk 0:02:25]}  a5 {[%clk 0:02:53]} 11. Nd2 {[%clk 0:02:14]}  Re8 {[%clk 0:02:14]} 12. f3 {[%clk 0:01:59]}  Nf8 {[%clk 0:02:01]} 13. Kh1 {[%clk 0:01:53]}  c5 {[%clk 0:01:58]} 14. Na4 {[%clk 0:01:28]}  cxd4 {[%clk 0:01:56]} 15. Bxd4 {[%clk 0:01:27]}  N8d7 {[%clk 0:01:46]} 16. cxd5 {[%clk 0:01:24]}  exd5 {[%clk 0:01:37]} 17. Bb5 {[%clk 0:01:23]}  Ba3 {[%clk 0:01:35]} 18. Bb2 {[%clk 0:01:07]}  Bxb2 {[%clk 0:01:31]} 19. Nxb2 {[%clk 0:01:08]}  Rxe3 {[%clk 0:01:30]} 20. Re1 {[%clk 0:01:03]}  Rxe1+ {[%clk 0:01:16]} 21. Qxe1 {[%clk 0:01:04]}  Rc8 {[%clk 0:01:16]} 22. Nf1 {[%clk 0:00:48]}  Rxc1 {[%clk 0:00:51]} 23. Qxc1 {[%clk 0:00:47]}  Qb6 {[%clk 0:00:52]} 24. Ne3 {[%clk 0:00:41]}  Be6 {[%clk 0:00:41]} 25. Bd3 {[%clk 0:00:35]}  Qc5 {[%clk 0:00:36]} 26. Qd2 {[%clk 0:00:33]}  Qb4 {[%clk 0:00:32]} 27. Qxb4 {[%clk 0:00:25]}  axb4 {[%clk 0:00:33]} 28. Nc2 {[%clk 0:00:25]}  Nc5 {[%clk 0:00:24]} 29. Nxb4 {[%clk 0:00:23]}  Nxd3 {[%clk 0:00:24]} 30. N2xd3 {[%clk 0:00:24]}  Kf8 {[%clk 0:00:23]} 31. Nc5 {[%clk 0:00:21]}  b6 {[%clk 0:00:21]} 32. Nxe6+ {[%clk 0:00:19]}  fxe6 {[%clk 0:00:22]} 33. Kg1 {[%clk 0:00:19]}  Ke7 {[%clk 0:00:22]} 34. Kf2 {[%clk 0:00:20]}  Kd6 {[%clk 0:00:22]} 35. Ke3 {[%clk 0:00:20]}  e5 {[%clk 0:00:22]} 36. Nd3 {[%clk 0:00:15]}  Nd7 {[%clk 0:00:20]} 37. b4 {[%clk 0:00:14]}  d4+ {[%clk 0:00:16]} 38. Ke4 {[%clk 0:00:13]}  Ke6 {[%clk 0:00:14]} 39. f4 {[%clk 0:00:09]}  Nf6+ {[%clk 0:00:15]} 40. Kf3 {[%clk 0:00:09]}  e4+ {[%clk 0:00:14]} 41. Ke2 {[%clk 0:00:10]}  exd3+ {[%clk 0:00:15]} 42. Kxd3 {[%clk 0:00:11]}  Kd5 {[%clk 0:00:14]} 43. h3 {[%clk 0:00:10]}  h5 {[%clk 0:00:11]} 44. a4 {[%clk 0:00:09]}  h4 {[%clk 0:00:11]} 45. a5 {[%clk 0:00:09]}  bxa5 {[%clk 0:00:12]} 46. bxa5 {[%clk 0:00:09]}  Nd7 {[%clk 0:00:11]} 47. f5 {[%clk 0:00:07]}  Nc5+ {[%clk 0:00:09]} 48. Kd2 {[%clk 0:00:07]}  Kc4 {[%clk 0:00:09]} 49. Ke2 {[%clk 0:00:06]}  d3+ {[%clk 0:00:09]} 50. Kd2 {[%clk 0:00:04]}  Nb3+ {[%clk 0:00:09]} 51. Ke3 {[%clk 0:00:04]}  Nxa5 {[%clk 0:00:09]} 52. f6 {[%clk 0:00:04]}  gxf6 {[%clk 0:00:09]} 53. Kd2 {[%clk 0:00:05]}  Nb3+ {[%clk 0:00:08]} 54. Kd1 {[%clk 0:00:05]}  Kc3 {[%clk 0:00:08]} 55. Ke1 {[%clk 0:00:04]}  Kc2 {[%clk 0:00:08]} 56. g4 {[%clk 0:00:05]}  hxg3 {[%clk 0:00:08]} 57. Kf1 {[%clk 0:00:04]}  d2 {[%clk 0:00:08]} 58. Kg2 {[%clk 0:00:03]}  d1=Q {[%clk 0:00:09]} 59. h4 {[%clk 0:00:02]}  Qg4 {[%clk 0:00:08]} 60. h5 {[%clk 0:00:03]}  Qxh5 {[%clk 0:00:08]} 61. Kf1 {[%clk 0:00:01]}  Qe5 {[%clk 0:00:09]} 62. Kg1 {[%clk 0:00:01]}  Qc5+ {[%clk 0:00:09]} 63. Kg2 {[%clk 0:00:01]}  Qc6+ {[%clk 0:00:09]} 64. Kh3 {[%clk 0:00:01]}  f5 {[%clk 0:00:08]} 65. Kh4 {[%clk 0:00:01]}  Qf6+ {[%clk 0:00:07]} 66. Kh3 {[%clk 0:00:01]}  f4 {[%clk 0:00:08]} 67. Kg2 {[%clk 0:00:01]}  Kd3 {[%clk 0:00:08]} 68. Kg1 {[%clk 0:00:02]}  Ke2 {[%clk 0:00:08]} 69. Kg2 {[%clk 0:00:02]}  f3+ {[%clk 0:00:08]} 70. Kxg3 {[%clk 0:00:02]}  Qg5+ {[%clk 0:00:07]} 71. Kh3 {[%clk 0:00:02]}  Qh5+ {[%clk 0:00:06]} 72. Kg3 {[%clk 0:00:03]}  Qg5+ {[%clk 0:00:06]} 73. Kh3 {[%clk 0:00:03]}  f2 {[%clk 0:00:07]} 74. Kh2 {[%clk 0:00:02]}  Nc5 {[%clk 0:00:06]} 75. Kh3 {[%clk 0:00:01]}  f1=Q+ {[%clk 0:00:07]} 76. Kh2 {[%clk 0:00:02]}  Qfg2# {[%clk 0:00:07]} 0-1


[Site "https://www.chess.com"]

[Event "Titled Tuesday Blitz April 12 Late 2022"]
[White "Guzman Moneo, Alberto"]
[Black "Stanisz, Patryk"]
[WhiteFideId "2209616"]
[BlackFideId "1123106"]
[WhiteElo "2157"]
[BlackElo "1833"]
[Result "1-0"]
[Round "11"]
[TimeControl "180+1"]
[Date "2022.04.13"]
[WhiteClock "0:00:12"]
[BlackClock "0:00:01"]

1. e4 {[%clk 0:03:00]}  c6 {[%clk 0:02:59]} 2. Nf3 {[%clk 0:03:00]}  d5 {[%clk 0:02:58]} 3. d3 {[%clk 0:03:00]}  g6 {[%clk 0:02:56]} 4. e5 {[%clk 0:02:59]}  Bg4 {[%clk 0:02:54]} 5. d4 {[%clk 0:02:58]}  Bg7 {[%clk 0:02:54]} 6. Be2 {[%clk 0:02:58]}  e6 {[%clk 0:02:53]} 7. c4 {[%clk 0:02:58]}  Ne7 {[%clk 0:02:53]} 8. Nc3 {[%clk 0:02:57]}  Nd7 {[%clk 0:02:52]} 9. cxd5 {[%clk 0:02:57]}  Nxd5 {[%clk 0:02:51]} 10. O-O {[%clk 0:02:55]}  O-O {[%clk 0:02:49]} 11. Bg5 {[%clk 0:02:52]}  Qb6 {[%clk 0:02:45]} 12. Ne4 {[%clk 0:02:51]}  c5 {[%clk 0:02:39]} 13. h3 {[%clk 0:02:29]}  Bxf3 {[%clk 0:02:37]} 14. Bxf3 {[%clk 0:02:29]}  cxd4 {[%clk 0:02:36]} 15. Nf6+ {[%clk 0:02:12]}  N7xf6 {[%clk 0:02:29]} 16. exf6 {[%clk 0:02:12]}  Nxf6 {[%clk 0:02:27]} 17. a4 {[%clk 0:02:07]}  e5 {[%clk 0:02:14]} 18. a5 {[%clk 0:02:05]}  Qe6 {[%clk 0:02:01]} 19. a6 {[%clk 0:01:57]}  e4 {[%clk 0:01:56]} 20. axb7 {[%clk 0:01:56]}  Rab8 {[%clk 0:01:56]} 21. Re1 {[%clk 0:01:56]}  Rxb7 {[%clk 0:01:49]} 22. Bxf6 {[%clk 0:01:54]}  Qxf6 {[%clk 0:01:42]} 23. Rxe4 {[%clk 0:01:49]}  Rxb2 {[%clk 0:01:33]} 24. Rxa7 {[%clk 0:01:48]}  Rfb8 {[%clk 0:01:33]} 25. Qa4 {[%clk 0:01:37]}  h5 {[%clk 0:00:58]} 26. Re8+ {[%clk 0:01:31]}  Kh7 {[%clk 0:00:53]} 27. Rxb8 {[%clk 0:01:09]}  Rxb8 {[%clk 0:00:54]} 28. Be4 {[%clk 0:01:09]}  Qf4 {[%clk 0:00:40]} 29. Qc2 {[%clk 0:00:58]}  d3 {[%clk 0:00:22]} 30. Qxd3 {[%clk 0:00:50]}  Rb2 {[%clk 0:00:22]} 31. Qf3 {[%clk 0:00:43]}  Qxf3 {[%clk 0:00:16]} 32. Bxf3 {[%clk 0:00:39]}  Rxf2 {[%clk 0:00:13]} 33. Rxf7 {[%clk 0:00:23]}  Rb2 {[%clk 0:00:10]} 34. Rb7 {[%clk 0:00:20]}  Rd2 {[%clk 0:00:09]} 35. Kf1 {[%clk 0:00:18]}  Kg8 {[%clk 0:00:05]} 36. Ke1 {[%clk 0:00:18]}  Rd4 {[%clk 0:00:04]} 37. Ke2 {[%clk 0:00:17]}  Be5 {[%clk 0:00:04]} 38. Ke3 {[%clk 0:00:16]}  Rd6 {[%clk 0:00:04]} 39. Ke4 {[%clk 0:00:16]}  Bg3 {[%clk 0:00:04]} 40. Ke3 {[%clk 0:00:13]}  Re6+ {[%clk 0:00:04]} 41. Be4 {[%clk 0:00:14]}  Rd6 {[%clk 0:00:05]} 42. Kf3 {[%clk 0:00:14]}  Kf8 {[%clk 0:00:04]} 43. Kxg3 {[%clk 0:00:14]}  Rf6 {[%clk 0:00:04]} 44. Bf3 {[%clk 0:00:13]}  g5 {[%clk 0:00:04]} 45. Bxh5 {[%clk 0:00:12]}  Kg8 {[%clk 0:00:03]} 46. Bf3 {[%clk 0:00:12]}  Kf8 {[%clk 0:00:02]} 47. Kg4 {[%clk 0:00:12]}  Rf4+ {[%clk 0:00:01]} 48. Kxg5 {[%clk 0:00:12]}  Rd4 {[%clk 0:00:01]} 49. h4 {[%clk 0:00:12]}  Rd6 {[%clk 0:00:01]} 50. h5 {[%clk 0:00:12]}  Kg8 {[%clk 0:00:02]} 51. h6 {[%clk 0:00:12]}  Kh8 {[%clk 0:00:03]} 52. Kh5 {[%clk 0:00:12]}  Rd7 {[%clk 0:00:01]} 53. Rxd7 {[%clk 0:00:12]} 1-0


[Site "https://www.chess.com"]

[Event "Titled Tuesday Blitz April 12 Late 2022"]
[White "Holt, Conrad"]
[Black "Vasquez Schroeder, Rodrigo"]
[WhiteFideId "2034387"]
[BlackFideId "3400042"]
[WhiteElo "2586"]
[BlackElo "2561"]
[Result "0-1"]
[Round "11"]
[TimeControl "180+1"]
[Date "2022.04.12"]
[WhiteClock "0:00:04"]
[BlackClock "0:00:22"]

1. d4 {[%clk 0:03:00]}  Nf6 {[%clk 0:02:59]} 2. c4 {[%clk 0:03:00]}  e6 {[%clk 0:03:00]} 3. Nc3 {[%clk 0:03:01]}  Bb4 {[%clk 0:03:00]} 4. Qc2 {[%clk 0:03:01]}  d6 {[%clk 0:02:59]} 5. Bd2 {[%clk 0:02:57]}  c5 {[%clk 0:02:43]} 6. dxc5 {[%clk 0:02:45]}  Bxc5 {[%clk 0:02:42]} 7. Nf3 {[%clk 0:02:36]}  a6 {[%clk 0:02:38]} 8. Ne4 {[%clk 0:02:27]}  Nxe4 {[%clk 0:02:36]} 9. Qxe4 {[%clk 0:02:27]}  Nd7 {[%clk 0:02:36]} 10. b4 {[%clk 0:02:14]}  Nf6 {[%clk 0:02:31]} 11. Qd3 {[%clk 0:02:13]}  Bb6 {[%clk 0:02:31]} 12. e3 {[%clk 0:02:11]}  O-O {[%clk 0:02:29]} 13. Be2 {[%clk 0:02:11]}  a5 {[%clk 0:02:15]} 14. O-O {[%clk 0:02:05]}  axb4 {[%clk 0:02:11]} 15. Bxb4 {[%clk 0:02:05]}  Bc5 {[%clk 0:02:11]} 16. a3 {[%clk 0:01:58]}  Qc7 {[%clk 0:02:05]} 17. Nd4 {[%clk 0:01:38]}  Bd7 {[%clk 0:02:02]} 18. Bf3 {[%clk 0:01:36]}  e5 {[%clk 0:01:49]} 19. Nb3 {[%clk 0:01:35]}  Be6 {[%clk 0:01:42]} 20. Rfc1 {[%clk 0:01:28]}  Bxb4 {[%clk 0:01:29]} 21. axb4 {[%clk 0:01:28]}  Rxa1 {[%clk 0:01:30]} 22. Nxa1 {[%clk 0:01:28]}  d5 {[%clk 0:01:25]} 23. Qa3 {[%clk 0:01:14]}  dxc4 {[%clk 0:01:19]} 24. b5 {[%clk 0:01:10]}  Bd5 {[%clk 0:01:12]} 25. Be2 {[%clk 0:01:04]}  Rc8 {[%clk 0:01:10]} 26. Nc2 {[%clk 0:00:48]}  Qc5 {[%clk 0:01:06]} 27. Qxc5 {[%clk 0:00:43]}  Rxc5 {[%clk 0:01:06]} 28. Na3 {[%clk 0:00:43]}  c3 {[%clk 0:00:57]} 29. Nb1 {[%clk 0:00:42]}  c2 {[%clk 0:00:49]} 30. Na3 {[%clk 0:00:42]}  Bb3 {[%clk 0:00:48]} 31. Kf1 {[%clk 0:00:35]}  Ba4 {[%clk 0:00:42]} 32. Ke1 {[%clk 0:00:30]}  Nd5 {[%clk 0:00:37]} 33. Bc4 {[%clk 0:00:12]}  Nb4 {[%clk 0:00:29]} 34. Kd2 {[%clk 0:00:11]}  e4 {[%clk 0:00:24]} 35. Ra1 {[%clk 0:00:11]}  Kf8 {[%clk 0:00:20]} 36. Kc3 {[%clk 0:00:10]}  Nd3 {[%clk 0:00:19]} 37. Nxc2 {[%clk 0:00:06]}  Bxb5 {[%clk 0:00:19]} 38. Ra8+ {[%clk 0:00:03]}  Ke7 {[%clk 0:00:19]} 39. Na3 {[%clk 0:00:03]}  Bxc4 {[%clk 0:00:19]} 40. Nxc4 {[%clk 0:00:04]}  b5 {[%clk 0:00:20]} 41. Kd4 {[%clk 0:00:04]}  Rxc4+ {[%clk 0:00:20]} 42. Kd5 {[%clk 0:00:04]}  Nb4+ {[%clk 0:00:20]} 43. Ke5 {[%clk 0:00:04]}  Nc6+ {[%clk 0:00:20]} 44. Kd5 {[%clk 0:00:04]}  Kd7 {[%clk 0:00:20]} 45. Rf8 {[%clk 0:00:04]}  Ne7+ {[%clk 0:00:20]} 46. Ke5 {[%clk 0:00:04]}  f6+ {[%clk 0:00:21]} 47. Kf4 {[%clk 0:00:03]}  Ng6+ {[%clk 0:00:21]} 48. Kg3 {[%clk 0:00:04]}  Nxf8 {[%clk 0:00:22]} 0-1


[Site "https://www.chess.com"]

[Event "Titled Tuesday Blitz April 12 Late 2022"]
[White "Indjic, Aleksandar"]
[Black "Quintiliano Pinto, Renato R."]
[WhiteFideId "911925"]
[BlackFideId "2117568"]
[WhiteElo "2616"]
[BlackElo "2439"]
[Result "1-0"]
[Round "11"]
[TimeControl "180+1"]
[Date "2022.04.12"]
[WhiteClock "0:00:08"]
[BlackClock "0:00:10"]

1. d4 {[%clk 0:02:55]}  Nf6 {[%clk 0:02:59]} 2. c4 {[%clk 0:02:54]}  e6 {[%clk 0:03:00]} 3. Nf3 {[%clk 0:02:53]}  b6 {[%clk 0:02:59]} 4. a3 {[%clk 0:02:53]}  Bb7 {[%clk 0:02:58]} 5. Nc3 {[%clk 0:02:53]}  d5 {[%clk 0:02:58]} 6. cxd5 {[%clk 0:02:52]}  Nxd5 {[%clk 0:02:59]} 7. Qc2 {[%clk 0:02:50]}  Be7 {[%clk 0:02:57]} 8. e4 {[%clk 0:02:49]}  Nxc3 {[%clk 0:02:57]} 9. bxc3 {[%clk 0:02:49]}  O-O {[%clk 0:02:58]} 10. Bd3 {[%clk 0:02:49]}  c5 {[%clk 0:02:56]} 11. O-O {[%clk 0:02:49]}  Nd7 {[%clk 0:02:53]} 12. Qe2 {[%clk 0:02:44]}  Rc8 {[%clk 0:02:49]} 13. a4 {[%clk 0:02:37]}  cxd4 {[%clk 0:02:49]} 14. cxd4 {[%clk 0:02:36]}  Bb4 {[%clk 0:02:48]} 15. Rb1 {[%clk 0:02:20]}  a5 {[%clk 0:02:37]} 16. Bb2 {[%clk 0:02:20]}  Nf6 {[%clk 0:02:31]} 17. h4 {[%clk 0:02:19]}  Qe7 {[%clk 0:02:27]} 18. Rbc1 {[%clk 0:02:06]}  Ba3 {[%clk 0:02:14]} 19. Bxa3 {[%clk 0:02:01]}  Qxa3 {[%clk 0:02:13]} 20. Rb1 {[%clk 0:01:56]}  Qxa4 {[%clk 0:01:56]} 21. Rxb6 {[%clk 0:01:53]}  Ba8 {[%clk 0:01:56]} 22. Rbb1 {[%clk 0:01:35]}  Rc3 {[%clk 0:01:39]} 23. e5 {[%clk 0:01:30]}  Bxf3 {[%clk 0:01:32]} 24. gxf3 {[%clk 0:01:16]}  Nd5 {[%clk 0:01:28]} 25. Qe4 {[%clk 0:01:14]}  g6 {[%clk 0:01:25]} 26. Ra1 {[%clk 0:01:14]}  Ra3 {[%clk 0:01:12]} 27. Rxa3 {[%clk 0:01:12]}  Qxa3 {[%clk 0:01:13]} 28. h5 {[%clk 0:01:11]}  Rc8 {[%clk 0:01:07]} 29. hxg6 {[%clk 0:01:07]}  hxg6 {[%clk 0:01:08]} 30. Kh2 {[%clk 0:00:38]}  Kg7 {[%clk 0:01:05]} 31. Kg3 {[%clk 0:00:36]}  Rh8 {[%clk 0:00:48]} 32. Bb1 {[%clk 0:00:17]}  Qe7 {[%clk 0:00:39]} 33. Qg4 {[%clk 0:00:14]}  Rh5 {[%clk 0:00:38]} 34. f4 {[%clk 0:00:15]}  Qa3+ {[%clk 0:00:37]} 35. Kg2 {[%clk 0:00:13]}  Qb2 {[%clk 0:00:34]} 36. Qf3 {[%clk 0:00:07]}  Qxd4 {[%clk 0:00:27]} 37. Be4 {[%clk 0:00:06]}  Nc3 {[%clk 0:00:25]} 38. Re1 {[%clk 0:00:06]}  a4 {[%clk 0:00:18]} 39. Kg3 {[%clk 0:00:06]}  a3 {[%clk 0:00:17]} 40. Re3 {[%clk 0:00:06]}  Nxe4+ {[%clk 0:00:15]} 41. Qxe4 {[%clk 0:00:07]}  Qa1 {[%clk 0:00:14]} 42. Re1 {[%clk 0:00:07]}  Qb2 {[%clk 0:00:14]} 43. Re2 {[%clk 0:00:07]}  Qb3+ {[%clk 0:00:13]} 44. Re3 {[%clk 0:00:08]}  Qd1 {[%clk 0:00:13]} 45. Re1 {[%clk 0:00:08]}  Qd2 {[%clk 0:00:11]} 46. Re2 {[%clk 0:00:09]}  Qa5 {[%clk 0:00:11]} 47. Qc2 {[%clk 0:00:08]}  Qb4 {[%clk 0:00:10]} 48. Qe4 {[%clk 0:00:08]}  Qa5 {[%clk 0:00:10]} 49. Qc2 {[%clk 0:00:07]}  Rh8 {[%clk 0:00:11]} 50. Qb3 {[%clk 0:00:06]}  Ra8 {[%clk 0:00:10]} 51. Ra2 {[%clk 0:00:06]}  Qa4 {[%clk 0:00:11]} 52. Qf3 {[%clk 0:00:05]}  Ra5 {[%clk 0:00:10]} 53. Qg4 {[%clk 0:00:05]}  Qc4 {[%clk 0:00:10]} 54. Qg5 {[%clk 0:00:05]}  Ra8 {[%clk 0:00:09]} 55. Ra1 {[%clk 0:00:06]}  Qd3+ {[%clk 0:00:08]} 56. f3 {[%clk 0:00:05]}  Qf5 {[%clk 0:00:08]} 57. Qh4 {[%clk 0:00:04]}  Rh8 {[%clk 0:00:08]} 58. Qf6+ {[%clk 0:00:04]}  Qxf6 {[%clk 0:00:08]} 59. exf6+ {[%clk 0:00:05]}  Kxf6 {[%clk 0:00:09]} 60. Rxa3 {[%clk 0:00:05]}  Rh5 {[%clk 0:00:09]} 61. Ra7 {[%clk 0:00:05]}  Rb5 {[%clk 0:00:09]} 62. Rc7 {[%clk 0:00:05]}  Rb1 {[%clk 0:00:09]} 63. Ra7 {[%clk 0:00:05]}  Rg1+ {[%clk 0:00:09]} 64. Kf2 {[%clk 0:00:05]}  Rc1 {[%clk 0:00:09]} 65. Kg3 {[%clk 0:00:06]}  Kg7 {[%clk 0:00:09]} 66. Rb7 {[%clk 0:00:06]}  Rc5 {[%clk 0:00:09]} 67. Ra7 {[%clk 0:00:06]}  Rf5 {[%clk 0:00:10]} 68. Rb7 {[%clk 0:00:07]}  Kh6 {[%clk 0:00:10]} 69. Ra7 {[%clk 0:00:07]}  Rf6 {[%clk 0:00:10]} 70. Rb7 {[%clk 0:00:07]}  Kg7 {[%clk 0:00:10]} 71. Ra7 {[%clk 0:00:08]}  Rf5 {[%clk 0:00:10]} 72. Rb7 {[%clk 0:00:08]}  Rd5 {[%clk 0:00:11]} 73. Rc7 {[%clk 0:00:08]}  Kf8 {[%clk 0:00:11]} 74. Rb7 {[%clk 0:00:09]}  Ke8 {[%clk 0:00:12]} 75. Ra7 {[%clk 0:00:09]}  Rd7 {[%clk 0:00:12]} 76. Ra8+ {[%clk 0:00:09]}  Ke7 {[%clk 0:00:12]} 77. Kg4 {[%clk 0:00:09]}  Kf6 {[%clk 0:00:13]} 78. Rf8 {[%clk 0:00:09]}  Kg7 {[%clk 0:00:12]} 79. Rc8 {[%clk 0:00:09]}  Re7 {[%clk 0:00:13]} 80. Rb8 {[%clk 0:00:09]}  Kh6 {[%clk 0:00:10]} 81. Kg3 {[%clk 0:00:09]}  Kh5 {[%clk 0:00:10]} 82. Rh8# {[%clk 0:00:08]} 1-0


[Site "https://www.chess.com"]